Workbook

Sheet 南京市鼓楼区残疾人两项补贴发放统计表
A1: 鼓楼区残疾人两项补贴统计表（2026年3月）
A2: 序 号 | B2: 发 放 单 位 | C2: 困难残疾人生活补贴（万元） | Q2: 重度残疾人护理（服务）补贴（万元） | V2: 实发金额合计（万元） | W2: 拨付金额（万元）（=实发-助残服务）
C3: 低保内 | I3: 低保外 | O3: 合计 | Q3: 重残 （140元） | S3: 低保（边缘）内重残 (400元服务) | U3: 合计
C4: 重残 （低保金50%） | E4: 3、4级精、智残 （低保金40%） | G4: 非重残 （低保金25%） | I4: 重残 （低保金100%） | K4: 特殊困难残疾人 （低保金60%） | M4: 无业无收入3、4级精神、智力残 （低保金40%）
C5: 人数 | D5: 补贴 金额 | E5: 人数 | F5: 补贴 金额 | G5: 人数 | H5: 补贴 金额 | I5: 人数 | J5: 补贴 金额 | K5: 人数 | L5: 补贴 金额 | M5: 人数 | N5: 补贴 金额 | O5: 人数 | P5: 补贴 金额 | Q5: 人数 | R5: 补贴 金额 | S5: 人数 | T5: 补贴 金额 | U5: 金 额
A6: 1 | B6: 湖南路 | C6: 27 | D6: 1.505250 | E6: 8 | F6: 0.3568 | G6: 12 | H6: 0.334500 | I6: 40 | J6: 4.4600 | K6: 2 | L6: 0.1338 | M6: 25 | N6: 1.1596 | O6: =C6+E6+G6+I6+K6+M6 -> 114 | P6: =N6+L6+J6+H6+F6+D6 -> 7.949950 | Q6: 338 | R6: 4.7460 | S6: 10 | T6: =400*S6/10000 -> 0.4000 | U6: =R6+T6 -> 5.1460 | V6: =U6+P6 -> 13.095950 | W6: =V6-T6 -> 12.695950
A7: 2 | B7: 宁海路 | C7: 31 | D7: 1.728250 | E7: 21 | F7: 0.9366 | G7: 6 | H7: 0.167250 | I7: 50 | J7: 5.5750 | K7: 1 | L7: 0.0669 | M7: 35 | N7: 1.5610 | O7: 144 | P7: 10.035000 | Q7: 347 | R7: 4.9000 | S7: 10 | T7: 0.4000 | U7: 5.3000 | V7: 15.335000 | W7: 14.935000
A8: 3 | B8: 中央门 | C8: 52 | D8: 2.899000 | E8: 33 | F8: 1.4718 | G8: 30 | H8: 0.836250 | I8: 101 | J8: 11.2615 | K8: 2 | L8: 0.1338 | M8: 31 | N8: 1.4272 | O8: 249 | P8: 18.029550 | Q8: 554 | R8: 7.7700 | S8: 24 | T8: 0.9600 | U8: 8.7300 | V8: 26.759550 | W8: 25.799550
A9: 4 | B9: 挹江门 | C9: 42 | D9: =557.5*C9/10000 -> 2.341500 | E9: 19 | F9: =446*E9/10000 -> 0.8474 | G9: 19 | H9: =278.75*G9/10000+0.027875 -> 0.557500 | I9: 68 | J9: 7.5820 | K9: 2 | L9: 0.1338 | M9: 32 | N9: 1.4272 | O9: 182 | P9: 12.889400 | Q9: =418+42 -> 460 | R9: =5.852+0.588 -> 6.4400 | S9: 7 | T9: 0.2800 | U9: 6.7200 | V9: 19.609400 | W9: 19.329400
A10: 5 | B10: 华侨路 | C10: 29 | D10: =(557.5*C10/10000) -> 1.616750 | E10: 8 | F10: =446*E10/10000 -> 0.3568 | G10: 10 | H10: =278.75*G10/10000 -> 0.278750 | I10: 42 | J10: =1115*I10/10000 -> 4.6830 | K10: 1 | L10: =669*K10/10000 -> 0.0669 | M10: 16 | N10: =446*M10/10000 -> 0.7136 | O10: 106 | P10: 7.715800 | Q10: 263 | R10: =140*Q10/10000+0.014 -> 3.6960 | S10: 7 | T10: 0.2800 | U10: 3.9760 | V10: 11.691800 | W10: 11.411800
A11: 6 | B11: 江东 | C11: 19 | D11: 1.059250 | E11: 14 | F11: 0.6244 | G11: 5 | H11: 0.139375 | I11: 54 | J11: 6.1325 | K11: 0 | L11: 0.0000 | M11: 20 | N11: 0.8920 | O11: 112 | P11: 8.847525 | Q11: 303 | R11: 4.2700 | S11: 7 | T11: 0.2800 | U11: 4.5500 | V11: 13.397525 | W11: 13.117525
A12: 7 | B12: 凤凰 | C12: 31 | D12: 1.728250 | E12: 30 | F12: 1.3380 | G12: 27 | H12: 0.752625 | I12: 75 | J12: 8.3625 | K12: 0 | L12: 0.0000 | M12: 25 | N12: 1.1150 | O12: 188 | P12: 13.296375 | Q12: 376 | R12: 5.3200 | S12: 3 | T12: 0.1200 | U12: 5.4400 | V12: 18.736375 | W12: 18.616375
A13: 8 | B13: 热河南路 | C13: 26 | D13: 1.449500 | E13: 17 | F13: 0.7582 | G13: 19 | H13: 0.529625 | I13: 48 | J13: 5.3520 | K13: 2 | L13: =669*K13/10000 -> 0.1338 | M13: 16 | N13: 0.7136 | O13: 128 | P13: 8.936725 | Q13: 334 | R13: 4.7880 | S13: 4 | T13: 0.1600 | U13: 4.9480 | V13: 13.884725 | W13: 13.724725
A14: 9 | B14: 下关 | C14: 59 | D14: 3.289250 | E14: 29 | F14: 1.2934 | G14: 24 | H14: 0.669000 | I14: 60 | J14: 6.6900 | K14: 0 | L14: 0.0000 | M14: 20 | N14: 0.8920 | O14: 192 | P14: 12.833650 | Q14: 394 | R14: =5.516+140/10000 -> 5.5300 | S14: 10 | T14: 0.4000 | U14: 5.9300 | V14: 18.763650 | W14: 18.363650
A15: 10 | B15: 建宁路 | C15: 31 | D15: 1.728250 | E15: 29 | F15: 1.2934 | G15: 8 | H15: 0.223000 | I15: 54 | J15: 6.0210 | K15: 0 | L15: 0.0000 | M15: 15 | N15: 0.7136 | O15: 137 | P15: 9.979250 | Q15: 302 | R15: 4.2280 | S15: 4 | T15: 0.1600 | U15: 4.3880 | V15: =P15+R15+T15 -> 14.367250 | W15: =P15+R15 -> 14.207250
A16: 11 | B16: 小市 | C16: 65 | D16: 3.623750 | E16: 43 | F16: 1.9178 | G16: 33 | H16: 0.947750 | I16: 75 | J16: 8.3625 | K16: 2 | L16: 0.1338 | M16: 28 | N16: 1.2488 | O16: 246 | P16: 16.234400 | Q16: 422 | R16: 5.9080 | S16: 16 | T16: =400*S16/10000 -> 0.6400 | U16: 6.5480 | V16: 22.782400 | W16: 22.142400
A17: 12 | B17: 宝塔桥 | C17: 100 | D17: =C17*0.05575 -> 5.575000 | E17: 66 | F17: =E17*0.0446 -> 2.9436 | G17: 44 | H17: =G17*0.027875 -> 1.226500 | I17: 76 | J17: 8.4740 | K17: 0 | L17: 0.0000 | M17: 60 | N17: 2.6760 | O17: 346 | P17: 20.895100 | Q17: 511 | R17: 7.1680 | S17: 25 | T17: 1.0000 | U17: 8.1680 | V17: 29.063100 | W17: 28.063100
A18: 13 | B18: 幕府山 | C18: 46 | D18: 2.564500 | E18: 31 | F18: 1.3826 | G18: 18 | H18: 0.501750 | I18: 60 | J18: 6.8015 | K18: 0 | L18: =591*K18/10000 -> 0.0000 | M18: 13 | N18: 0.5798 | O18: 168 | P18: 11.830150 | Q18: 320 | R18: 4.4800 | S18: 5 | T18: 0.2000 | U18: 4.6800 | V18: =P18+U18 -> 16.510150 | W18: =V18-T18 -> 16.310150
A19: 合计 | C19: =SUM(C6:C18) -> 558 | D19: 31.108500 | E19: 348 | F19: 15.5208 | G19: 255 | H19: 7.163875 | I19: 803 | J19: 89.7575 | K19: 12 | L19: 0.8028 | M19: 336 | N19: 15.1194 | O19: 2312 | P19: 159.472875 | Q19: 4924 | R19: 69.2440 | S19: 132 | T19: 5.2800 | U19: 74.5240 | V19: 233.996875 | W19: 228.716875
A20: 备注 | C20: 鼓楼区3月补发：1、生活补贴：低内25%，2人557.5元；低外100%，2人2230元；低外40%，3人1338元。合计4125.5元。2、护理补贴：16人3080元。 | U20: =P19+U19 -> 233.996875
